[Event "Charlotte Summer IM D 2022"]
[Site "Charlotte"]
[Date "2022.07.27"]
[Round "6.1"]
[White "Bacus, Dharim"]
[Black "Leyva Rivera, Yunier"]
[Result "0-1"]
[ECO "B85"]
[WhiteElo "2227"]
[BlackElo "2379"]
[Annotator "TA"]
[PlyCount "76"]
[EventDate "2022.07.24"]
[EventType "tourn"]
[EventCountry "USA"]
[SourceTitle "playchess.com"]
[Source "ChessBase"]
[SourceQuality "1"]
[TimeControl "5400+30"]

{[%evp 31,76,9,7,6,35,-11,0,-23,-10,-16,43,35,68,78,104,64,89,73,91,85,87,31,52,-63,-63,-64,-59,-87,-81,-76,-81,-87,-88,-67,-51,-620,-143,-156,-155,-341,-305,-967,-984,-899,-966,-29984,-3296]} 1. e4 {[%emt 0:00:04]} c5 {[%emt 0:01:16]} 2. Nf3 {[%emt 0:00:25]} d6 {[%emt 0:00:57]} 3. d4 {[%emt 0:00:07]} cxd4 {[%emt 0:00:05]} 4. Nxd4 {[%emt 0:00:04]} Nf6 {[%emt 0:00:20]} 5. Nc3 {[%emt 0:00:08]} Nc6 {[%emt 0:00:34]} 6. Be2 e6 {[%emt 0:00:30]} 7. Be3 {[%emt 0:04:59]} Be7 {[%emt 0:00:10]} 8. O-O {[%emt 0:00:30]} O-O {[%emt 0:00:30]} 9. f4 {[%emt 0:00:30]} a6 {[%emt 0:00:30]} 10. a4 {[%emt 0:00:30]} Qc7 {[%emt 0:00:30]} 11. Nb3 {[%emt 0:30:19]} b6 12. Bf3 {[%emt 0:00:30]} Bb7 13. Qe1 {[%emt 0:00:30]} Rfe8 {[%emt 0:13:32]} 14. Kh1 {[%emt 0:02:06]} Bf8 {[%emt 0:08:13]} 15. Qf2 {[%emt 0:08:53]} Nd7 {[%emt 0:11:36]} 16. Rad1 {[%emt 0:02:27]} Rab8 {[%emt 0:12:13]} 17. h3 {[#] B85: Sicilian Scheveningen: 6 Be2 a6, lines with early Be3.} Ba8 $146 {[%emt 0:07:41]} ({Predecessor:} 17... Nb4 18. Rd2 Rbd8 19. Rfd1 Nc5 20. Nd4 d5 21. e5 Ne4 22. Bxe4 dxe4 23. Nb3 Rxd2 24. Rxd2 Qc4 25. Bxb6 Nxc2 {1-0 (43) Striebich,R (2230)-Kercher,P (2085) Boeblingen 1998}) 18. Rd2 {[%emt 0:09:11]} (18. f5 $14 {was preferrable.}) 18... Nc5 {[%emt 0:20:33]} 19. Nd4 {The position is equal.} Nxd4 {[%emt 0:10:31]} 20. Bxd4 Rbd8 {[%emt 0:05:37]} ({Better is} 20... b5 $11) 21. f5 $14 {[%emt 0:09:01]} e5 {[%emt 0:00:30]} 22. Be3 {[%emt 0:00:30]} Bc6 {[%emt 0:05:42]} 23. b3 {[%emt 0:05:03][%cal Of5f6]} Qb7 {[%emt 0:00:00][%cal Rc5e4]} 24. Nd5 {[%emt 0:00:28]} b5 {[%emt 0:00:00]} 25. axb5 {[%emt 0:00:38]} axb5 {[%emt 0:00:00]} 26. Bg5 (26. g4 $16) 26... Bxd5 {[%emt 0:02:00]} 27. Bxd8 {[%emt 0:06:13]} (27. Rxd5 $14 Ra8 28. b4) 27... Nxe4 $15 {[%emt 0:00:00]} 28. Bxe4 {[%emt 0:00:07]} Bxe4 {[%emt 0:00:00]} 29. Qb6 {[%emt 0:01:12]} Qd7 {[%emt 0:00:00][%csl LRd8,LRf5]} 30. Bc7 {[%emt 0:00:30][%cal Rc7d6]} d5 {[%emt 0:00:07][%cal Bd6d5,Bd5d4][%mdl 32]} 31. c4 {[%emt 0:10:19]} bxc4 {[%emt 0:00:05]} 32. bxc4 {[%emt 0:07:09]} d4 {[%emt 0:00:06]} 33. Qb5 $2 {[%emt 0:00:30][%mdl 8192] [#]} (33. c5 $15) 33... Bc6 $2 {[%emt 0:00:49] This bishop pair is nice.} (33... Qxc7 $1 $19 {and Black stays clearly on top.} 34. Rb2 (34. Qxe8 $2 {perishes.} Bc6 $19) (34. c5 Bc6) 34... Bc6) 34. Qa5 {[%emt 0:00:45] [#]} f6 {[%emt 0:00:52] Strongly threatening ...Ra8.} 35. Rb2 $2 {[%emt 0:04:22] White does not recover from this.} (35. c5 $17) 35... e4 {[%emt 0:02:31][%cal Be5e4,Be4e3][%mdl 32]} 36. Rb8 $2 {[%emt 0:00:00]} (36. Bb6 e3 37. Re2) 36... e3 $19 {[%emt 0:00:00]} 37. Rxe8 {[%emt 0:00:28]} Qxe8 {[%emt 0:00:00]} 38. Bb6 {[%emt 0:01:02]} Qe4 {[%emt 0:01:30] Weighted Error Value: White=1.13/Black=0.61} (38... e2 $142 39. Qe1 exf1=Q+ 40. Qxf1 Qe3 41. Bxd4 Qxd4 42. Qe1 Bd6 43. Qe6+ Kf8 44. Qe1 Qf4 45. Kg1 Bc5+ 46. Kh1 Qg5 47. Qe2 Qg3 48. Qe8+ Kxe8 49. h4 Bxg2#) 0-1

[Event "Charlotte Summer IM D 2022"]
[Site "Charlotte"]
[Date "2022.07.27"]
[Round "6.2"]
[White "Wen, Teddie"]
[Black "Oberoi, Shelev"]
[Result "1/2-1/2"]
[ECO "D27"]
[WhiteElo "2234"]
[BlackElo "2259"]
[Annotator "TA"]
[PlyCount "118"]
[EventDate "2022.07.24"]
[EventType "tourn"]
[EventCountry "USA"]
[SourceTitle "playchess.com"]
[Source "ChessBase"]
[SourceQuality "1"]
[TimeControl "5400+30"]

{[%evp 15,118,24,28,21,29,23,22,14,18,0,0,0,0,0,0,0,0,0,0,0,0,0,6,0,32,24,52,18,18,19,43,45,51,60,165,197,200,208,205,195,191,193,184,179,191,0,22,35,223,206,206,30,20,0,0,-162,-168,-168,-168,-168,-97,-100,-95,-100,-106,-98,-104,-103,-87,-99,-50,-70,-70,-70,-70,-71,-70,-71,-57,-58,29980,-87,0,-62,0,-81,-81,-1000,-84,-84,-77,-83,0,-93,-75,-91,-70,-85,-77,-75,-75,-619,-531,-29964,-5122]} 1. d4 {[%emt 0:03:07]} d5 {[%emt 0:00:13]} 2. c4 {[%emt 0:00:19]} dxc4 {[%emt 0:00:10]} 3. Nf3 {[%emt 0:00:04]} Nf6 {[%emt 1:31:37]} 4. e3 e6 {[%emt 0:00:00]} 5. Bxc4 {[%emt 0:00:23]} a6 {[%emt 0:00:00]} 6. O-O {[%emt 0:00:10]} c5 {[%emt 0:00:00]} 7. b3 {[%emt 0:00:06]} Nbd7 {[%emt 0:00:00]} 8. Bb2 {[%emt 0:00:40]} Be7 {[%emt 0:00:00] The main line 8...Be7 scores better than 8...b5.} 9. dxc5 {[%emt 0:00:03] D27: Queen's Gambit Accepted: Classical main line: 7 e4!? and 7 a4.} Bxc5 {[%emt 0:00:00]} 10. Qe2 {[%emt 0:03:35]} O-O {[%emt 0:00:00]} 11. Bd3 {[%emt 1:27:33] [#] The position is equal.} Qe7 $146 ({Predecessor:} 11... b6 12. Rd1 Qe7 13. Nbd2 Bb7 14. a3 a5 15. Nc4 Rfd8 16. Rac1 Rac8 17. Nd4 Nf8 {½-½ (30) Alfaro de Hombre,J (2331)-Hetzer,V (2282) ICCF email 2018}) 12. Ne5 Rd8 13. Nd2 Nxe5 14. Bxe5 Nd5 15. Rac1 {[%emt 0:00:00]} f6 {[%emt 0:06:00]} 16. Bb2 Bd7 {[%emt 0:00:00]} 17. Ne4 {[%emt 0:00:00]} Bb6 {[%emt 0:00:00]} 18. Rfd1 {[%emt 0:00:00]} Bc6 {[%emt 0:00:00]} 19. a3 {[%emt 0:00:00]} f5 {[%emt 0:00:00]} 20. Nd2 {[%emt 0:00:00]} f4 {[%emt 0:00:00][%cal Rf4e3]} 21. Nc4 {[%emt 0:00:00]} (21. Qh5 Nf6 22. Bxf6 gxf6 $11) 21... Bc7 $1 {[%emt 0:00:00]} 22. e4 $36 {[%emt 0:00:00][%mdl 2048] White has some pressure.} f3 $1 {[%emt 0:00:00]} 23. Qxf3 {[%emt 0:00:00]} Rf8 $1 {[%emt 0:00:00]} 24. Qg4 {[%emt 0:00:00]} Rf4 {[%emt 0:00:00]} (24... Nf4 $14) 25. Qe2 $18 {[%emt 0:00:00]} Rh4 {[%emt 0:03:02]} 26. exd5 {[%emt 0:00:00]} Bxh2+ {[%emt 0:00:07]} 27. Kf1 {[%emt 0:00:00]} Bxd5 {[%emt 0:00:34]} 28. Ne3 {[%emt 0:00:00]} Bf4 {[%emt 0:00:58][%cal Rh4h1]} 29. Ke1 $1 {[%emt 0:00:00]} Bxb3 {[%emt 0:00:34] [#]} 30. Qf3 {[%emt 0:00:40]} (30. Bc2 $1 $18 {[%cal Rc2b3]} Rh1+ 31. Kd2 (31. Nf1 Bxc1 32. Rxc1 Bd5 $11) 31... Rd8+ 32. Kc3) 30... Rf8 {[%emt 0:00:46]} (30... Bd5 $5 31. Qe2 Bb3 $14) 31. g3 {[%emt 0:03:31]} Bc7 $2 {[%emt 0:01:19]} 32. Qg2 {[%emt 0:01:39]} Rh5 {[%emt 0:00:35]} 33. Rd2 {[%emt 0:00:29]} ({White has to play} 33. Bc2 $18 Bxc2 34. Rxc2) 33... Ba5 $11 {[%emt 0:00:11]} 34. Bc3 {[%emt 0:00:34]} Rc8 $1 {[%emt 0:00:40]} 35. Bc4 $2 {[%emt 0:00:18]} Rxc4 $19 {[%emt 0:00:34]} 36. Nxc4 {[%emt 0:00:10]} Bxc4 {[%emt 0:00:11] A strong pair of Bishops.} 37. Qe4 {[%emt 0:04:06] And now Bxa5 would win.} Bd5 {[%emt 0:00:46]} (37... Qxa3 $19 38. Bxa5 Qxc1+ 39. Rd1 Bd5 40. Rxc1 Bxe4 41. Rc8+ Kf7 42. Rc7+ Kg8 43. Rc8+ Kf7 44. Rc7+ Kg8 45. Rc8+) 38. Rxd5 $17 {[%emt 0:00:18]} Bxc3+ {[%emt 0:00:12]} 39. Rxc3 {[%emt 0:00:01]} Rxd5 {[%emt 0:00:11][%mdl 4096] Endgame KQR-KQR} 40. Rc8+ {[%emt 0:00:17]} Kf7 {[%emt 0:00:50]} 41. Qxh7 Qd7 {[%emt 0:01:30]} 42. Qc2 {[%emt 0:01:51]} Rd1+ {[%emt 0:00:00]} 43. Qxd1 {[%emt 0:00:21]} Qxc8 $15 {[%emt 0:00:00] KQ-KQ} 44. Qf3+ Ke7 {[%emt 0:00:44]} 45. Qe3 Qd7 {[%emt 0:00:25]} 46. Kf1 {[%emt 0:00:30]} Qd5 {[%emt 0:01:21]} 47. Qc3 {[%emt 0:03:15]} Qc5 $2 {[%emt 0:00:00][%mdl 8192]} 48. Qf3 $2 {[%emt 0:00:00]} (48. Qxc5+ {mates} Kd7 49. Qd4+ Kc6 50. Qxg7 b5 51. g4 Kd5 52. g5 a5 53. g6) 48... Qd5 {[%emt 0:01:00]} 49. Qc3 {[%emt 0:01:00]} Kd6 {[%emt 0:00:00]} ({Better is} 49... Qh1+ $15 50. Ke2 Qe4+ 51. Kf1 g6) 50. Qb4+ (50. Qxg7 $11 Qh1+ 51. Ke2) 50... Kd7 $17 {[%emt 0:01:00] White must now prevent ...Qb5+.} 51. Qa4+ {[%emt 0:00:00][%mdl 8192] [#]} (51. Kg1 $17) 51... Kc7 $2 {[%emt 0:00:30]} (51... Qb5+ $1 $19 52. Qxb5+ axb5) 52. Qc2+ {[%emt 0:00:00]} Kb8 {[%emt 0:00:00]} 53. Qc3 {[%emt 0:00:00]} Ka8 {[%emt 0:00:17]} (53... g5 $17) 54. Qc8+ {[%emt 0:00:00]} (54. Qxg7 $11 {remains equal.} Qh1+ 55. Ke2) 54... Ka7 {[%emt 0:00:01]} 55. Qc3 {[%emt 0:00:00] Against Qd3+} e5 {[%emt 0:01:08][%cal Be6e5,Be5d4][%mdl 32]} 56. Kg1 {[%emt 0:00:05]} Qd1+ {[%emt 0:00:17]} 57. Kg2 {[%emt 0:00:01]} Qd4 {[%emt 0:00:28] Inhibits Qc5+.} 58. Qxd4+ {[%emt 0:00:51][%mdl 8192]} (58. Qc2 $17) 58... exd4 $19 {[%emt 0:00:05]} 59. f3 {[%emt 0:00:02]} Kb6 {[%emt 0:01:01][%mdl 32768] A wild game.  Weighted Error Value: White=0.72/Black=0.42. An unexpected result.} (59... a5 $142 60. Kf1 b5 61. Ke2 Kb6 62. f4 a4 63. Kd3 Kc5 64. g4 b4 65. axb4+ Kxb4 66. g5 a3 67. Kxd4 a2 68. Ke5 a1=Q+ 69. Ke6 Qd4 70. f5 Qe4+ 71. Kf7 Qxf5+ 72. Kxg7 Qxg5+ 73. Kh8 Kc5 74. Kh7 Kd6 75. Kh8 Ke5 76. Kh7 Kf6 77. Kh8 Qg7#) 1/2-1/2

[Event "Charlotte Summer IM D 2022"]
[Site "Charlotte"]
[Date "2022.07.27"]
[Round "6.3"]
[White "Chasin, Nico"]
[Black "Vigorito, David"]
[Result "1/2-1/2"]
[ECO "E74"]
[WhiteElo "2285"]
[BlackElo "2295"]
[Annotator "TA"]
[PlyCount "55"]
[EventDate "2022.07.24"]
[EventType "tourn"]
[EventCountry "USA"]
[SourceTitle "playchess.com"]
[Source "ChessBase"]
[SourceQuality "1"]
[TimeControl "5400+30"]

{[%evp 21,55,18,28,24,34,9,14,18,21,12,18,0,33,-14,25,31,30,0,0,0,0,0,0,0,18,42,56,43,79,79,79,8,8,8,8,7]} 1. d4 {[%emt 0:05:49]} Nf6 {[%emt 0:00:18]} 2. c4 {[%emt 0:00:10]} g6 {[%emt 0:00:13]} 3. Nc3 {[%emt 0:00:11]} Bg7 {[%emt 0:00:04]} 4. e4 {[%emt 0:00:06]} d6 {[%emt 0:00:06]} 5. Be2 {[%emt 0:00:04]} O-O {[%emt 0:00:09]} 6. Be3 {[%emt 0:00:07]} c5 {[%emt 0:02:51]} 7. d5 {[%emt 0:00:45]} a6 {[%emt 0:01:13]} 8. a4 {[%emt 0:01:27]} Qa5 {[%emt 0:01:57]} 9. Bd2 {[%emt 0:07:41]} e6 {[%emt 0:01:23]} 10. Nf3 {[%emt 0:01:06]} exd5 {[%emt 0:00:12]} 11. cxd5 {[%emt 0:00:09] is the legacy move (11.exd5).} Bg4 {[%emt 0:00:31]} 12. O-O {[%emt 0:00:52] E74: King's Indian: Averbakh Variation: 6...c5.} Qc7 {[%emt 0:04:25]} 13. Bf4 {[%emt 0:09:45]} Bxf3 {[%emt 0:02:34]} 14. Bxf3 {[%emt 0:00:45]} Nbd7 {[%emt 0:00:14]} 15. Rc1 {[%emt 0:00:28]} Rfe8 {[%emt 0:05:37]} 16. Re1 {[%emt 0:03:27][%cal Oa4a5] [#]} Rab8 $146 {[%emt 0:02:20]} ({Predecessor:} 16... Ne5 17. Be2 Qb6 18. Qc2 Rac8 19. h3 Qb4 20. Bf1 Nh5 21. Na2 Qa5 {0-1 (54) Brown,A (1914)-Toth,A (2403) Canberra 2007}) 17. b4 {[%emt 0:05:11]} (17. b3 $14) 17... b5 {[%emt 0:10:26]} (17... Ne5 {keeps more tension.} 18. bxc5 Qxc5 19. Nb5 Qb6) 18. bxc5 {[%emt 0:04:03]} Nxc5 {[%emt 1:04:57]} 19. axb5 {[%emt 0:04:19]} (19. e5 {with more complications.} dxe5 20. d6 Qd8 21. Bg5) 19... axb5 {[%emt 0:00:00]} 20. e5 $1 {[%emt 0:01:36]} dxe5 {[%emt 0:00:00]} 21. Rxe5 {[%emt 0:02:46]} Rxe5 {[%emt 0:00:00]} 22. d6 {[%emt 0:00:41]} Qa5 {[%emt 0:00:00]} 23. Bxe5 {[%emt 0:00:18] This bishop pair is nice.} Ncd7 {[%emt 0:02:30]} 24. Bxf6 {[%emt 0:05:36]} Nxf6 {[%emt 0:00:00]} 25. Nd5 {[%emt 0:00:47] White is more active.} Nxd5 {[%emt 0:01:00]} 26. Bxd5 {[%emt 0:02:10]} ({White should play} 26. Qxd5 $16 {With the idea d7.} Bb2 27. Rd1) 26... Rd8 $11 {[%emt 0:00:00]} 27. g3 {[%emt 0:05:05] Black should prevent Qf3.} Qa3 {[%emt 0:00:00]} 28. Rc6 {[%emt 0:05:29] Weighted Error Value: White=0.15 (very precise) /Black=0.12 (very precise)} 1/2-1/2

[Event "Charlotte Summer IM D 2022"]
[Site "Charlotte"]
[Date "2022.07.27"]
[Round "6.4"]
[White "Martin Del Campo Cardenas, Roberto Abel"]
[Black "Levine, Joseph"]
[Result "0-1"]
[ECO "A08"]
[WhiteElo "2245"]
[BlackElo "2294"]
[Annotator "TA"]
[PlyCount "72"]
[EventDate "2022.07.24"]
[EventType "tourn"]
[EventCountry "USA"]
[SourceTitle "playchess.com"]
[Source "ChessBase"]
[SourceQuality "1"]
[TimeControl "5400+30"]

{[%evp 11,72,-18,0,-18,6,0,0,-11,0,0,-4,0,83,0,93,54,68,31,43,33,28,45,35,50,47,37,38,30,43,41,33,53,114,-699,-667,-819,-816,-825,-833,-808,-803,-796,-785,-786,-788,-770,-783,-779,-774,-705,-714,-29977,-29978,-29978,-1238,-12839,-12840,-29996,-29997,-29997,-29998,-29998,-29999]} 1. Nf3 {[%emt 0:00:08]} d5 {[%emt 0:00:02]} 2. g3 {[%emt 0:00:18]} Nf6 {[%emt 0:00:03]} 3. Bg2 {[%emt 0:00:07]} g6 {[%emt 0:04:04]} 4. O-O {[%emt 0:00:40]} Bg7 {[%emt 0:00:02]} 5. d3 {[%emt 0:05:45]} O-O {[%emt 0:00:53]} 6. c3 {[%emt 0:04:50]} c5 {[%emt 0:03:12]} 7. a3 {[%emt 0:03:46] A08: King's Indian Attack.} a5 {[%emt 0:01:04]} 8. a4 {[%emt 0:03:53]} Nc6 {[%emt 1:25:10]} 9. Na3 {[%emt 0:00:21] The position is equal.} h6 {[%emt 0:00:00]} 10. Qc2 {[%emt 0:04:01] [#]} Re8 $146 {[%emt 0:00:00]} ({Predecessor:} 10... e5 11. e4 Be6 12. Nd2 Kh7 13. Re1 b6 14. Nb5 Rb8 15. Nf1 Rb7 16. f4 Re7 17. fxe5 Nxe5 {0-1 (49) Foisor,C (2371)-Lputian,S (2625) Porto San Giorgio 1999}) 11. e4 {[%emt 0:07:49]} e6 {[%emt 0:00:00]} (11... e5 $11) 12. Nb5 {[%emt 0:18:57]} ({White should try} 12. e5 $16) 12... c4 {[%emt 0:00:00]} (12... e5 $11) 13. exd5 {[%emt 0:10:35]} exd5 {[%emt 0:00:00]} 14. Nfd4 {[%emt 0:03:20]} Nxd4 {[%emt 0:00:00]} 15. Nxd4 {[%emt 0:00:04]} Ng4 {[%emt 0:00:00]} 16. dxc4 {[%emt 0:03:02]} dxc4 {[%emt 0:00:00]} 17. Rd1 {[%emt 0:00:27]} Bxd4 {[%emt 0:00:00]} 18. cxd4 {[%emt 0:00:33] Black must now prevent h3.} Bf5 {[%emt 0:00:00]} 19. Qxc4 {[%emt 0:01:38] Strongly threatening h3.} Rc8 {[%emt 0:00:00]} 20. Qf1 {[%emt 0:03:01]} Bc2 $1 {[%emt 0:00:00]} (20... Rc2 21. Rd2 $16) 21. Rd2 {[%emt 0:01:52]} ({Don't play} 21. Bxb7 Bxd1 22. Qxd1 (22. Bxc8 $2 Be2 $19) 22... Rc4 $1 23. Qxg4 Re1+ 24. Kg2 Rxd4 $17) 21... Bb3 {[%emt 0:00:00]} ({Better is} 21... Qe7 $14) 22. Bxb7 $2 {[%emt 0:01:30][%mdl 8192] This costs White the game.} (22. h3 $16 Nf6 23. Re2 (23. Bxb7 Rc7 $16)) 22... Bc4 $1 $19 {[%emt 0:00:00][%cal Bb3c4,Bc4f1,Bf1h3,Bh3c8][%mdl 32]} 23. Qd1 {[%emt 0:00:37]} Qe7 $1 {[%emt 0:00:00]} 24. Bxc8 {[%emt 0:07:39] [#]} Qe1+ $1 {[%emt 0:00:00]} 25. Qxe1 {[%emt 0:00:05]} Rxe1+ {[%emt 0:00:00]} 26. Kg2 {[%emt 0:00:02] [#]} Bf1+ $1 {[%emt 0:00:00][%mdl 64] Deflection} 27. Kf3 {[%emt 0:00:02]} Nxh2+ {[%emt 0:00:00]} 28. Kf4 {[%emt 0:00:03]} g5+ {[%emt 0:00:00]} 29. Kf5 {[%emt 0:01:08]} Bh3+ {[%emt 0:00:00][%mdl 64] Skewer} 30. Kf6 {[%emt 0:01:26]} Bxc8 {[%emt 0:00:00][%cal Rh2g4]} 31. f3 {[%emt 0:00:07] Inhibits Ng4+.} Re6+ {[%emt 0:00:00]} 32. Kf5 {[%emt 0:00:01]} Re8+ {[%emt 0:00:48]} (32... Nxf3 $142 33. Rc2 Nxd4+ 34. Kg4 Nxc2 35. Bxg5 Re1+ 36. Kh5 Rxa1 37. Bxh6 Rh1+ 38. Kg5 Nd4 39. Bg7 Kxg7 40. Kf4 Ne6+ 41. Ke3 Bb7 42. Kd3 Bd5 43. Ke2 Rg1 44. Kf2 Rg2+ 45. Ke3 Rxg3+ 46. Kf2 Rg2+ 47. Ke3 Kf6 48. Kd3 Ke5 49. Kc3 Nd4 50. b4 Rc2+ 51. Kd3 Be4+ 52. Ke3 Nf5#) 33. Kf6 {[%emt 0:00:06]} Nxf3 {[%emt 0:00:29] ( -> ...Re6+)} 34. d5 {[%emt 0:00:45] Against Re6+} Ne5 {[%emt 0:00:44][%cal Re5g4] Black mates.} 35. Rd4 {[%emt 0:00:11]} Nd7+ {[%emt 0:00:11]} 36. Kf5 {[%emt 0:00:04]} Nf8+ {[%emt 0:00:05] Weighted Error Value: White=0.63/Black=0.17 (very precise)} 0-1

[Event "Charlotte Summer IM D 2022"]
[Site "Charlotte"]
[Date "2022.07.27"]
[Round "6.5"]
[White "Canty, James"]
[Black "Bisiriyu-Salam, Oluwaseun"]
[Result "1/2-1/2"]
[ECO "D00"]
[WhiteElo "2175"]
[BlackElo "1992"]
[Annotator "TA"]
[PlyCount "57"]
[EventDate "2022.07.24"]
[EventType "tourn"]
[EventCountry "USA"]
[SourceTitle "playchess.com"]
[Source "ChessBase"]
[SourceQuality "1"]
[TimeControl "5400+30"]

{[%evp 9,57,-4,0,0,0,-1,12,3,12,0,18,6,5,0,7,0,20,0,27,0,13,-145,0,-16,0,-22,16,-4,1,-6,12,-7,-7,-7,-7,0,0,-32,-24,-87,-58,-93,-104,-94,-85,-113,-112,-140,-143,-162]} 1. d4 {[%emt 0:00:30]} Nf6 {[%emt 0:08:49]} 2. Nc3 {[%emt 0:00:00]} d5 {[%emt 0:00:21]} 3. Bf4 {[%emt 0:00:00]} a6 {[%emt 0:00:13]} 4. e3 {[%emt 0:00:00]} Bf5 {[%emt 0:00:17]} 5. f3 {[%emt 0:00:18]} h5 {[%emt 0:02:08]} 6. Bd3 {[%emt 0:01:34] D00: 1 d4 d5: Unusual lines.} Bxd3 {[%emt 0:00:38]} 7. Qxd3 {[%emt 0:00:07] [#]} Nc6 $146 {[%emt 0:00:26]} ({Predecessor:} 7... e6 8. O-O-O c5 9. dxc5 Bxc5 10. e4 d4 11. Nce2 Nc6 12. Nh3 Rc8 13. a3 Nd7 {1-0 (72) Damjanovic,V (2393)-Rustemov,A (2525) Chess.com INT 2021}) 8. O-O-O {[%emt 0:01:40] The position is equal.} Qd7 {[%emt 0:00:29]} 9. e4 {[%emt 0:02:50]} e6 {[%emt 0:00:11]} 10. Nge2 {[%emt 0:03:41]} O-O-O {[%emt 0:00:22]} 11. h3 {[%emt 0:04:04]} Be7 {[%emt 0:01:52]} 12. Kb1 {[%emt 0:03:10]} Na5 {[%emt 0:03:57]} 13. b3 {[%emt 0:01:42]} Ba3 {[%emt 0:01:55]} 14. Ka1 {[%emt 0:01:57]} Nc6 {[%emt 0:02:14]} 15. Nb1 $2 {[%emt 0:01:16] [#]} (15. Qe3 $11) 15... Be7 {[%emt 0:00:45]} (15... dxe4 $17 16. Qe3 (16. fxe4 $2 Nb4 $19) 16... Nd5) 16. e5 {[%emt 0:04:39]} Nh7 {[%emt 0:03:28]} 17. Bc1 {[%emt 0:02:53]} Nf8 {[%emt 0:00:29]} 18. Bb2 {[%emt 0:00:21]} Ng6 {[%emt 1:10:56]} 19. f4 {[%emt 0:00:47]} h4 {[%emt 0:00:00]} 20. a3 {[%emt 0:02:34]} Bf8 {[%emt 0:00:00]} 21. Nd2 {[%emt 0:00:51]} Nce7 {[%emt 0:00:00]} 22. Rc1 {[%emt 0:02:01]} Nf5 {[%emt 0:02:00]} 23. c3 {[%emt 0:03:07]} Kb8 {[%emt 0:00:00]} 24. b4 {[%emt 0:06:12]} (24. Ka2 $11) 24... Qa4 {[%emt 0:00:00]} 25. Rb1 {[%emt 0:00:26]} Nge7 {[%emt 0:01:30][%cal Bg6e7,Be7c8,Bc8b6][%mdl 32]} 26. Bc1 {[%emt 0:08:12]} Nc8 {[%emt 0:00:00]} 27. Rb3 {[%emt 0:04:36]} Nb6 {[%emt 0:00:00]} 28. Ka2 {[%emt 0:02:46]} Qb5 {[%emt 0:00:00]} 29. Qf3 {[%emt 0:01:47] Weighted Error Value: White=0.30/Black=0.14 (very precise)} 1/2-1/2

[Event "Charlotte Summer IM D 2022"]
[Site "Charlotte"]
[Date "2022.07.27"]
[Round "7.1"]
[White "Bisiriyu-Salam, Oluwaseun"]
[Black "Bacus, Dharim"]
[Result "1/2-1/2"]
[ECO "C50"]
[WhiteElo "1992"]
[BlackElo "2227"]
[Annotator "TA"]
[PlyCount "43"]
[EventDate "2022.07.24"]
[EventType "tourn"]
[EventCountry "USA"]
[SourceTitle "playchess.com"]
[Source "ChessBase"]
[SourceQuality "1"]
[TimeControl "5400+30"]

{[%evp 20,30,-21,-25,-18,-22,14,0,0,0,0,0,0]} 1. e4 {[%emt 0:14:00]} e5 {[%emt 0:06:48]} 2. Nf3 {[%emt 0:00:09]} Nc6 {[%emt 0:00:07]} 3. Bc4 {[%emt 0:00:12]} Bc5 {[%emt 0:00:14]} 4. O-O {[%emt 0:00:14]} d6 {[%emt 0:00:47]} 5. h3 {[%emt 0:01:05]} Nf6 {[%emt 0:00:30]} 6. Nc3 {[%emt 0:00:30]} O-O {[%emt 0:00:30]} 7. d3 {[%emt 0:00:30]} Na5 {[%emt 0:00:30]} 8. Bb3 {[%emt 0:00:30]} h6 {[%emt 0:00:30]} 9. Be3 {[%emt 0:00:30]} Nxb3 {[%emt 0:00:30]} 10. axb3 {[%emt 0:00:30]} Bxe3 {[%emt 0:00:30]} 11. fxe3 {[%emt 0:00:30]} Re8 {[%emt 0:00:30] C50: Hungarian Defence and Giuoco Pianissimo.} 12. Qe1 {[%emt 0:00:30] The position is equal.} d5 {[%emt 0:00:30]} 13. Nxd5 {[%emt 0:00:30]} Nxd5 {[%emt 0:00:30]} 14. exd5 {[%emt 0:00:30]} Qxd5 {[%emt 0:00:30]} 15. e4 {[%emt 0:00:30]} Qc5+ {[%emt 0:00:30] [#] A rather calm draw.  Weighted Error Value: White=0.06 (flawless) /Black=0.20 (precise)} {Predecessor:} 16. Qf2 $146 Qxf2+ 17. Rxf2 Bd7 18. Ra5 f6 19. Nh4 b6 20. Ra1 a5 21. Nf5 Bxf5 22. Rxf5 {½-½ (48) Calvete Gimenez,J (1824)-Otazo Sanchez,A (1985) Caracas 2012} 1/2-1/2